[Event "Live Chess"]
[Site "Chess.com"]
[Date "2023.05.20"]
[Round "-"]
[White "Horseymobile"]
[Black "Richardallis"]
[Result "0-1"]
[WhiteElo "1190"]
[BlackElo "1765"]
[TimeControl "300"]
[EndTime "12:43:13 PDT"]
[Termination "Richardallis won on time"]

1. d4 {[%clk 0:04:59.5]} 1... c5 {[%clk 0:04:58.6]} 2. d5 {[%clk 0:04:57.3]}
2... d6 {[%clk 0:04:57.4]} 3. c4 {[%clk 0:04:57]} 3... e5 {[%clk 0:04:56.2]} 4.
e4 {[%clk 0:04:52.1]} 4... f5 {[%clk 0:04:53.9]} 5. Nc3 {[%clk 0:04:51.2]} 5...
Nf6 {[%clk 0:04:52.3]} 6. Bd3 {[%clk 0:04:45]} 6... f4 {[%clk 0:04:49.1]} 7. g3
{[%clk 0:04:30.5]} 7... fxg3 {[%clk 0:04:47.6]} 8. hxg3 {[%clk 0:04:29.2]} 8...
Be7 {[%clk 0:04:46.5]} 9. f4 {[%clk 0:04:24.7]} 9... Nbd7 {[%clk 0:04:43]} 10.
Bd2 {[%clk 0:04:13.5]} 10... O-O {[%clk 0:04:41.1]} 11. Qc2 {[%clk 0:03:59.6]}
11... a6 {[%clk 0:04:38.8]} 12. Nf3 {[%clk 0:03:49.1]} 12... Ng4 {[%clk
0:04:35.9]} 13. Rf1 {[%clk 0:03:10.7]} 13... Bf6 {[%clk 0:04:31.3]} 14. O-O-O
{[%clk 0:03:08.3]} 14... b5 {[%clk 0:04:26.3]} 15. Be2 {[%clk 0:02:46.5]} 15...
b4 {[%clk 0:04:24.2]} 16. Na4 {[%clk 0:02:39.5]} 16... Qa5 {[%clk 0:04:21.8]}
17. Nh4 {[%clk 0:02:15.9]} 17... Nb6 {[%clk 0:04:11.9]} 18. Nxb6 {[%clk
0:02:08]} 18... Qxb6 {[%clk 0:04:10.7]} 19. Nf5 {[%clk 0:01:46.5]} 19... Bxf5
{[%clk 0:04:09.1]} 20. exf5 {[%clk 0:01:45.4]} 20... Nh6 {[%clk 0:04:08.5]} 21.
fxe5 {[%clk 0:01:41.2]} 21... Bxe5 {[%clk 0:04:07.2]} 22. Bxh6 {[%clk
0:01:39.3]} 22... gxh6 {[%clk 0:04:05.8]} 23. Qd2 {[%clk 0:01:29.4]} 23... Rf6
{[%clk 0:04:04]} 24. g4 {[%clk 0:01:23]} 24... Kh8 {[%clk 0:03:50.9]} 25. Rh1
{[%clk 0:01:13.7]} 25... Rg8 {[%clk 0:03:41]} 26. Rxh6 {[%clk 0:01:04]} 26...
Qd8 {[%clk 0:03:38.8]} 27. Rdh1 {[%clk 0:00:45.1]} 27... Rxh6 {[%clk 0:03:37.1]}
28. Qxh6 {[%clk 0:00:39.1]} 28... Qg5+ {[%clk 0:03:35.9]} 29. Qxg5 {[%clk
0:00:37.6]} 29... Rxg5 {[%clk 0:03:35.6]} 30. Rh6 {[%clk 0:00:24.6]} 30... Rxf5
{[%clk 0:03:32.6]} 31. gxf5 {[%clk 0:00:23.2]} 31... Bf4+ {[%clk 0:03:31.3]} 32.
Kc2 {[%clk 0:00:20.5]} 32... Bxh6 {[%clk 0:03:30.8]} 33. Kd3 {[%clk 0:00:18.7]}
33... Bg7 {[%clk 0:03:28.3]} 34. b3 {[%clk 0:00:17]} 34... Be5 {[%clk
0:03:26.9]} 35. Bh5 {[%clk 0:00:13.1]} 35... Kg7 {[%clk 0:03:26]} 36. Be8 {[%clk
0:00:11.9]} 36... a5 {[%clk 0:03:24.5]} 37. Ke4 {[%clk 0:00:09]} 37... Kf6
{[%clk 0:03:23.5]} 38. Bh5 {[%clk 0:00:08.5]} 38... Kg5 {[%clk 0:03:22.3]} 39.
Bd1 {[%clk 0:00:08.3]} 39... h5 {[%clk 0:03:21.7]} 40. Bxh5 {[%clk 0:00:07.2]}
40... Kxh5 {[%clk 0:03:20]} 41. f6 {[%clk 0:00:05.1]} 41... Bxf6 {[%clk
0:03:17.9]} 42. Kf5 {[%clk 0:00:03.6]} 42... Be5 {[%clk 0:03:17.2]} 43. Ke6
{[%clk 0:00:02.3]} 43... Kg5 {[%clk 0:03:16.6]} 44. Kd7 {[%clk 0:00:01.8]} 44...
Kf4 {[%clk 0:03:16.1]} 45. Kc6 {[%clk 0:00:01.3]} 45... Ke3 {[%clk 0:03:14.7]}
46. Kb5 {[%clk 0:00:01.1]} 46... Kd4 {[%clk 0:03:13.8]} 47. Kxa5 {[%clk
0:00:01]} 47... Kc3 {[%clk 0:03:12.8]} 48. Ka4 {[%clk 0:00:00.3]} 48... Kb2
{[%clk 0:03:11.5]} 0-1

[Event "Live Chess"]
[Site "Chess.com"]
[Date "2023.05.20"]
[Round "-"]
[White "BostonStrangler"]
[Black "kevinmilleruk"]
[Result "1-0"]
[WhiteElo "2073"]
[BlackElo "1120"]
[TimeControl "300"]
[EndTime "12:43:18 PDT"]
[Termination "BostonStrangler won by resignation"]

1. Nf3 {[%clk 0:04:58.1]} 1... g6 {[%clk 0:04:55.7]} 2. g3 {[%clk 0:04:53.2]}
2... Bg7 {[%clk 0:04:54.4]} 3. Bg2 {[%clk 0:04:53.1]} 3... e6 {[%clk 0:04:51.8]}
4. O-O {[%clk 0:04:52.5]} 4... Ne7 {[%clk 0:04:50.6]} 5. d4 {[%clk 0:04:51]}
5... O-O {[%clk 0:04:50]} 6. c4 {[%clk 0:04:50.1]} 6... Nbc6 {[%clk 0:04:46.6]}
7. Nc3 {[%clk 0:04:47.4]} 7... d5 {[%clk 0:04:41.3]} 8. c5 {[%clk 0:04:46.6]}
8... e5 {[%clk 0:04:34]} 9. dxe5 {[%clk 0:04:44.3]} 9... Nxe5 {[%clk 0:04:32]}
10. Nxe5 {[%clk 0:04:41.9]} 10... Bxe5 {[%clk 0:04:28.7]} 11. Bh6 {[%clk
0:04:41.5]} 11... Bg7 {[%clk 0:04:26.9]} 12. Bxg7 {[%clk 0:04:40.5]} 12... Kxg7
{[%clk 0:04:26.8]} 13. Qd4+ {[%clk 0:04:38.3]} 13... f6 {[%clk 0:04:21.3]} 14.
e4 {[%clk 0:04:12.5]} 14... c6 {[%clk 0:04:19.6]} 15. exd5 {[%clk 0:04:11.2]}
15... cxd5 {[%clk 0:04:15.1]} 16. Rfe1 {[%clk 0:04:08.7]} 16... Nc6 {[%clk
0:04:13.1]} 17. Qxd5 {[%clk 0:04:06.8]} 17... Qxd5 {[%clk 0:04:10.6]} 18. Nxd5
{[%clk 0:04:05.4]} 18... Bf5 {[%clk 0:04:06.5]} 19. Ne7 {[%clk 0:04:02.1]} 19...
Nxe7 {[%clk 0:04:00.5]} 20. Rxe7+ {[%clk 0:04:00.3]} 20... Kh6 {[%clk
0:03:58.7]} 21. Rxb7 {[%clk 0:03:58.5]} 21... a5 {[%clk 0:03:57]} 22. c6 {[%clk
0:03:57]} 22... a4 {[%clk 0:03:52.1]} 23. h3 {[%clk 0:03:49.2]} 23... a3 {[%clk
0:03:50.2]} 24. b4 {[%clk 0:03:43.3]} 24... Rac8 {[%clk 0:03:33]} 25. b5 {[%clk
0:03:40.5]} 25... Rfe8 {[%clk 0:03:28.5]} 26. g4 {[%clk 0:03:37.6]} 26... Be4
{[%clk 0:03:24.1]} 27. Re1 {[%clk 0:03:31.5]} 27... Bd3 {[%clk 0:03:15.5]} 28.
Rxe8 {[%clk 0:03:23.7]} 28... Rxe8 {[%clk 0:03:13.2]} 29. c7 {[%clk 0:03:23.3]}
29... Rc8 {[%clk 0:03:12.1]} 30. b6 {[%clk 0:03:21.8]} 30... f5 {[%clk
0:03:04.6]} 31. Rb8 {[%clk 0:03:19.5]} 31... Ba6 {[%clk 0:02:59.7]} 32. Rxc8
{[%clk 0:03:18.6]} 32... Bxc8 {[%clk 0:02:57.5]} 33. b7 {[%clk 0:03:18.2]} 33...
Bxb7 {[%clk 0:02:56.3]} 34. Bxb7 {[%clk 0:03:16.5]} 34... fxg4 {[%clk
0:02:56.2]} 35. hxg4 {[%clk 0:03:15.1]} 35... g5 {[%clk 0:02:56.1]} 36. c8=Q
{[%clk 0:03:12.3]} 1-0

[Event "Live Chess"]
[Site "Chess.com"]
[Date "2023.05.20"]
[Round "-"]
[White "LL220284LL"]
[Black "AttackingSnowLeopard"]
[Result "1-0"]
[WhiteElo "2406"]
[BlackElo "2036"]
[TimeControl "300"]
[EndTime "12:43:26 PDT"]
[Termination "LL220284LL won on time"]

1. d4 {[%clk 0:04:58.7]} 1... d5 {[%clk 0:04:58.5]} 2. c4 {[%clk 0:04:57.9]}
2... c6 {[%clk 0:04:57.1]} 3. Nf3 {[%clk 0:04:57.2]} 3... Nf6 {[%clk 0:04:55.9]}
4. Nc3 {[%clk 0:04:55.9]} 4... dxc4 {[%clk 0:04:54.9]} 5. e4 {[%clk 0:04:54.7]}
5... b5 {[%clk 0:04:53.5]} 6. e5 {[%clk 0:04:52.7]} 6... Nd5 {[%clk 0:04:52.3]}
7. a4 {[%clk 0:04:51.7]} 7... e6 {[%clk 0:04:51]} 8. axb5 {[%clk 0:04:49.9]}
8... Nxc3 {[%clk 0:04:50]} 9. bxc3 {[%clk 0:04:48.1]} 9... cxb5 {[%clk
0:04:49.7]} 10. Be2 {[%clk 0:04:45.7]} 10... Bb7 {[%clk 0:04:48.8]} 11. O-O
{[%clk 0:04:44.1]} 11... Be7 {[%clk 0:04:46.9]} 12. Nd2 {[%clk 0:04:42.3]} 12...
Bd5 {[%clk 0:04:41.9]} 13. Bf3 {[%clk 0:04:40.7]} 13... Nc6 {[%clk 0:04:40]} 14.
Ne4 {[%clk 0:04:38.8]} 14... Qd7 {[%clk 0:04:32.2]} 15. Ba3 {[%clk 0:04:37.8]}
15... O-O {[%clk 0:04:19.5]} 16. Bxe7 {[%clk 0:04:35.3]} 16... Nxe7 {[%clk
0:04:18.8]} 17. Nc5 {[%clk 0:04:32.3]} 17... Qc6 {[%clk 0:04:15.2]} 18. Be2
{[%clk 0:04:25.8]} 18... a5 {[%clk 0:04:12.2]} 19. f4 {[%clk 0:04:23.2]} 19...
Bxg2 {[%clk 0:04:01.3]} 20. Rf2 {[%clk 0:04:21.7]} 20... Bd5 {[%clk 0:03:58.3]}
21. Qb1 {[%clk 0:04:15.6]} 21... Nf5 {[%clk 0:03:53.8]} 22. Bg4 {[%clk
0:04:11.9]} 22... g6 {[%clk 0:03:48]} 23. Bxf5 {[%clk 0:04:08.1]} 23... exf5
{[%clk 0:03:47.1]} 24. Kf1 {[%clk 0:04:07.2]} 24... Rfb8 {[%clk 0:03:40.9]} 25.
Rfa2 {[%clk 0:04:05]} 25... Be4 {[%clk 0:03:25]} 26. Qe1 {[%clk 0:04:01.2]}
26... Bd3+ {[%clk 0:03:20.4]} 27. Kf2 {[%clk 0:03:58]} 27... b4 {[%clk
0:03:11.9]} 28. Rxa5 {[%clk 0:03:50.5]} 28... Rxa5 {[%clk 0:03:10.2]} 29. Rxa5
{[%clk 0:03:50.4]} 29... b3 {[%clk 0:03:07.7]} 30. e6 {[%clk 0:03:44.6]} 30...
Be4 {[%clk 0:02:44.5]} 31. exf7+ {[%clk 0:03:35.3]} 31... Kxf7 {[%clk
0:02:40.8]} 32. Ra6 {[%clk 0:03:15.3]} 32... Qd5 {[%clk 0:02:29.9]} 33. Ra7+
{[%clk 0:03:13]} 33... Kg8 {[%clk 0:02:26.6]} 34. Nd7 {[%clk 0:03:09.1]} 34...
Rf8 {[%clk 0:02:00.9]} 35. Nxf8 {[%clk 0:03:01.3]} 35... Kxf8 {[%clk 0:02:00.5]}
36. Qc1 {[%clk 0:02:58.7]} 36... Qd6 {[%clk 0:01:39.3]} 37. Ke3 {[%clk
0:02:51.2]} 37... Kg8 {[%clk 0:01:30.9]} 38. Qa1 {[%clk 0:02:30.5]} 38... g5
{[%clk 0:01:12.8]} 39. fxg5 {[%clk 0:02:08.3]} 39... Qxh2 {[%clk 0:01:11]} 40.
Ra8+ {[%clk 0:02:01.1]} 40... Bxa8 {[%clk 0:01:07.4]} 41. Qxa8+ {[%clk 0:02:01]}
41... Kg7 {[%clk 0:01:01.9]} 42. Qb7+ {[%clk 0:01:59.3]} 42... Kg6 {[%clk
0:00:59.5]} 43. Qc6+ {[%clk 0:01:58.4]} 43... Kxg5 {[%clk 0:00:54.2]} 44. Qxc4
{[%clk 0:01:56.9]} 44... f4+ {[%clk 0:00:32.3]} 45. Ke4 {[%clk 0:01:48.7]} 45...
Qg2+ {[%clk 0:00:31]} 46. Ke5 {[%clk 0:01:47]} 46... f3 {[%clk 0:00:29]} 47.
Qg8+ {[%clk 0:01:44.3]} 47... Kh4 {[%clk 0:00:28.4]} 48. Qxh7+ {[%clk
0:01:41.5]} 48... Kg3 {[%clk 0:00:28]} 49. Qg6+ {[%clk 0:01:30.5]} 49... Kf2
{[%clk 0:00:26.7]} 50. Qb1 {[%clk 0:01:30.4]} 50... Qg3+ {[%clk 0:00:22.4]} 51.
Kd5 {[%clk 0:01:28.1]} 51... Qg5+ {[%clk 0:00:20.7]} 52. Kc4 {[%clk 0:01:26.5]}
52... Qd2 {[%clk 0:00:18.7]} 53. Qxb3 {[%clk 0:01:23.5]} 53... Kg2 {[%clk
0:00:17.9]} 54. Qb7 {[%clk 0:01:20.8]} 54... Qe2+ {[%clk 0:00:15.5]} 55. Kb3
{[%clk 0:01:19.1]} 55... Qd1+ {[%clk 0:00:13.5]} 56. Kb2 {[%clk 0:01:17.9]}
56... Qd2+ {[%clk 0:00:12.6]} 57. Kb3 {[%clk 0:01:17.1]} 57... Qd1+ {[%clk
0:00:12]} 58. Kc4 {[%clk 0:01:15.6]} 58... Qe2+ {[%clk 0:00:11.1]} 59. Kc5
{[%clk 0:01:14.9]} 59... Kh2 {[%clk 0:00:10.4]} 60. Qh7+ {[%clk 0:01:13.5]}
60... Kg2 {[%clk 0:00:09.9]} 61. Qg6+ {[%clk 0:01:12.8]} 61... Kf1 {[%clk
0:00:09.4]} 62. d5 {[%clk 0:01:11.7]} 62... f2 {[%clk 0:00:08.9]} 63. d6 {[%clk
0:01:10.7]} 63... Qe3+ {[%clk 0:00:08.4]} 64. Kc6 {[%clk 0:01:09]} 64... Ke1
{[%clk 0:00:08.3]} 65. Qb1+ {[%clk 0:01:07.5]} 65... Ke2 {[%clk 0:00:07.5]} 66.
d7 {[%clk 0:01:06.1]} 66... f1=Q {[%clk 0:00:06.3]} 67. Qxf1+ {[%clk 0:01:04.9]}
67... Kxf1 {[%clk 0:00:06.2]} 68. d8=Q {[%clk 0:01:04.3]} 68... Qxc3+ {[%clk
0:00:05.7]} 69. Kb7 {[%clk 0:01:03.7]} 69... Qb4+ {[%clk 0:00:05]} 70. Kc8
{[%clk 0:01:02.1]} 70... Qa4 {[%clk 0:00:04.7]} 71. Qd3+ {[%clk 0:01:00.6]}
71... Kf2 {[%clk 0:00:04.6]} 72. Qd2+ {[%clk 0:00:59.8]} 72... Kf3 {[%clk
0:00:03.7]} 73. Qc3+ {[%clk 0:00:59.2]} 73... Kf2 {[%clk 0:00:03.6]} 74. Qc5+
{[%clk 0:00:57.8]} 74... Kf3 {[%clk 0:00:03.5]} 75. Qh5+ {[%clk 0:00:57.1]}
75... Kg3 {[%clk 0:00:02.8]} 76. Qg6+ {[%clk 0:00:56.1]} 76... Kf2 {[%clk
0:00:02.7]} 77. Qf6+ {[%clk 0:00:54.4]} 77... Kg2 {[%clk 0:00:02.6]} 78. Qg5+
{[%clk 0:00:53.5]} 78... Kh3 {[%clk 0:00:02.5]} 79. Qe3+ {[%clk 0:00:52.6]}
79... Kg2 {[%clk 0:00:02.4]} 80. Qd2+ {[%clk 0:00:51.3]} 80... Kh3 {[%clk
0:00:01.6]} 81. Qd3+ {[%clk 0:00:50.5]} 81... Kh2 {[%clk 0:00:01.5]} 82. Qe2+
{[%clk 0:00:49.6]} 82... Kg1 {[%clk 0:00:01.4]} 83. Qe3+ {[%clk 0:00:48.3]}
83... Kh2 {[%clk 0:00:01.3]} 84. Qd2+ {[%clk 0:00:47.4]} 84... Kg1 {[%clk
0:00:01.2]} 85. Qe1+ {[%clk 0:00:46.2]} 85... Kh2 {[%clk 0:00:01.1]} 86. Qf2+
{[%clk 0:00:45.1]} 86... Kh1 {[%clk 0:00:00.3]} 87. Qf1+ {[%clk 0:00:44.2]}
87... Kh2 {[%clk 0:00:00.2]} 88. Qe2+ {[%clk 0:00:43.6]} 88... Kh1 {[%clk
0:00:00.1]} 89. Qf3+ {[%clk 0:00:42.4]} 1-0

[Event "Live Chess"]
[Site "Chess.com"]
[Date "2023.05.20"]
[Round "-"]
[White "Missedidea"]
[Black "Jonmill"]
[Result "0-1"]
[WhiteElo "1656"]
[BlackElo "1228"]
[TimeControl "300"]
[EndTime "12:43:49 PDT"]
[Termination "Jonmill won on time"]

1. d4 {[%clk 0:04:58.2]} 1... Nf6 {[%clk 0:04:58.8]} 2. c4 {[%clk 0:04:56.5]}
2... e5 {[%clk 0:04:57.4]} 3. dxe5 {[%clk 0:04:55.1]} 3... Ng4 {[%clk
0:04:56.8]} 4. Bf4 {[%clk 0:04:52.4]} 4... Bb4+ {[%clk 0:04:55.3]} 5. Nd2 {[%clk
0:04:48.7]} 5... Nc6 {[%clk 0:04:54]} 6. Nf3 {[%clk 0:04:46.8]} 6... Qe7 {[%clk
0:04:51.6]} 7. a3 {[%clk 0:04:43]} 7... Ngxe5 {[%clk 0:04:47.5]} 8. Nxe5 {[%clk
0:04:41.1]} 8... Nxe5 {[%clk 0:04:41.3]} 9. Bxe5 {[%clk 0:04:24.8]} 9... Bxd2+
{[%clk 0:04:39.1]} 10. Qxd2 {[%clk 0:04:23.8]} 10... Qxe5 {[%clk 0:04:38.6]} 11.
e3 {[%clk 0:04:22.6]} 11... d6 {[%clk 0:04:28.5]} 12. Be2 {[%clk 0:04:16.7]}
12... Bf5 {[%clk 0:04:26.9]} 13. O-O {[%clk 0:04:13.7]} 13... O-O {[%clk
0:04:22.2]} 14. b4 {[%clk 0:03:59.3]} 14... Rad8 {[%clk 0:04:20.6]} 15. Bf3
{[%clk 0:03:56.5]} 15... Be4 {[%clk 0:04:05]} 16. Bxe4 {[%clk 0:03:54.2]} 16...
Qxe4 {[%clk 0:04:03.9]} 17. Rac1 {[%clk 0:03:50.9]} 17... Rfe8 {[%clk
0:03:47.9]} 18. Rfd1 {[%clk 0:03:26.2]} 18... Re6 {[%clk 0:03:46]} 19. Qd4
{[%clk 0:03:24.1]} 19... Qf5 {[%clk 0:03:35.3]} 20. Qxa7 {[%clk 0:03:13.7]}
20... Rf6 {[%clk 0:03:31.3]} 21. Rd2 {[%clk 0:02:47.6]} 21... Re8 {[%clk
0:02:54]} 22. Qxb7 {[%clk 0:02:33.7]} 22... h5 {[%clk 0:02:45.4]} 23. Qc6 {[%clk
0:02:13.2]} 23... Re4 {[%clk 0:02:38.6]} 24. Qxc7 {[%clk 0:01:42.7]} 24... Rg4
{[%clk 0:02:27.5]} 25. Qb8+ {[%clk 0:01:22.7]} 25... Kh7 {[%clk 0:02:25.8]} 26.
Qb7 {[%clk 0:01:20.3]} 26... h4 {[%clk 0:02:03.7]} 27. b5 {[%clk 0:00:48]} 27...
h3 {[%clk 0:02:00.7]} 28. g3 {[%clk 0:00:45.6]} 28... Qc5 {[%clk 0:01:16.1]} 29.
Qd5 {[%clk 0:00:28.3]} 29... Qxa3 {[%clk 0:01:09.5]} 30. Rcd1 {[%clk 0:00:20.4]}
30... Qc3 {[%clk 0:00:24.5]} 31. Qh5+ {[%clk 0:00:09]} 31... Kg8 {[%clk
0:00:21.9]} 32. Qxg4 {[%clk 0:00:08]} 32... Rg6 {[%clk 0:00:13.2]} 33. Qc8+
{[%clk 0:00:05.6]} 33... Kh7 {[%clk 0:00:12.3]} 34. Qxh3+ {[%clk 0:00:01.8]}
34... Kg8 {[%clk 0:00:11.3]} 0-1

[Event "Live Chess"]
[Site "Chess.com"]
[Date "2023.05.20"]
[Round "-"]
[White "xx_blindpuffin_xx"]
[Black "RoaringKnights"]
[Result "1-0"]
[WhiteElo "2215"]
[BlackElo "992"]
[TimeControl "300"]
[EndTime "12:43:50 PDT"]
[Termination "xx_blindpuffin_xx won by checkmate"]

1. d4 {[%clk 0:04:59]} 1... c6 {[%clk 0:04:58.6]} 2. Bf4 {[%clk 0:04:58.5]} 2...
Qb6 {[%clk 0:04:54.9]} 3. b3 {[%clk 0:04:55.4]} 3... d5 {[%clk 0:04:52.7]} 4. e3
{[%clk 0:04:53.9]} 4... Bf5 {[%clk 0:04:50.3]} 5. Nf3 {[%clk 0:04:52.9]} 5... e6
{[%clk 0:04:48.5]} 6. Bd3 {[%clk 0:04:51.7]} 6... Bxd3 {[%clk 0:04:46.7]} 7.
Qxd3 {[%clk 0:04:51.6]} 7... Bb4+ {[%clk 0:04:45.3]} 8. c3 {[%clk 0:04:50.2]}
8... Be7 {[%clk 0:04:40.1]} 9. O-O {[%clk 0:04:48.8]} 9... Nf6 {[%clk
0:04:38.8]} 10. Nbd2 {[%clk 0:04:47.6]} 10... Nbd7 {[%clk 0:04:34.7]} 11. h3
{[%clk 0:04:46.8]} 11... c5 {[%clk 0:04:33.7]} 12. c4 {[%clk 0:04:44.3]} 12...
cxd4 {[%clk 0:04:30.9]} 13. exd4 {[%clk 0:04:39.3]} 13... dxc4 {[%clk
0:04:21.6]} 14. bxc4 {[%clk 0:04:39.2]} 14... O-O {[%clk 0:04:19.2]} 15. Rab1
{[%clk 0:04:37]} 15... Qa6 {[%clk 0:04:17.1]} 16. Qb3 {[%clk 0:04:31.9]} 16...
b6 {[%clk 0:04:11.4]} 17. Rfc1 {[%clk 0:04:22]} 17... Nh5 {[%clk 0:04:02.3]} 18.
Bh2 {[%clk 0:04:19.8]} 18... Nhf6 {[%clk 0:03:57.2]} 19. Qb5 {[%clk 0:04:18.1]}
19... Qxa2 {[%clk 0:03:46.8]} 20. Rb2 {[%clk 0:04:07.6]} 20... Qa5 {[%clk
0:03:43]} 21. Qxa5 {[%clk 0:03:46]} 21... bxa5 {[%clk 0:03:41.2]} 22. Rb5 {[%clk
0:03:44.1]} 22... Bb4 {[%clk 0:03:39.1]} 23. Nb3 {[%clk 0:03:43.1]} 23... Rab8
{[%clk 0:03:36.1]} 24. Bxb8 {[%clk 0:03:40.3]} 24... Nxb8 {[%clk 0:03:22.7]} 25.
Nxa5 {[%clk 0:03:38.4]} 25... Bxa5 {[%clk 0:03:20.2]} 26. Rxa5 {[%clk
0:03:38.3]} 26... Nc6 {[%clk 0:03:19.6]} 27. Ra6 {[%clk 0:03:36.4]} 27... Nb4
{[%clk 0:03:16.1]} 28. Rxa7 {[%clk 0:03:34.6]} 28... Rd8 {[%clk 0:03:11.4]} 29.
Rb1 {[%clk 0:03:32.4]} 29... Nc6 {[%clk 0:03:08]} 30. Ra6 {[%clk 0:03:30.9]}
30... Ne7 {[%clk 0:02:57]} 31. Rb7 {[%clk 0:03:27.2]} 31... Ng6 {[%clk
0:02:54.4]} 32. c5 {[%clk 0:03:21.8]} 32... h6 {[%clk 0:02:51.6]} 33. c6 {[%clk
0:03:20.6]} 33... Nd5 {[%clk 0:02:47.9]} 34. c7 {[%clk 0:03:19.6]} 34... Rc8
{[%clk 0:02:43.7]} 35. Rb8 {[%clk 0:03:18.2]} 35... Nxc7 {[%clk 0:02:40.4]} 36.
Rxc8+ {[%clk 0:03:17]} 36... Kh7 {[%clk 0:02:39.3]} 37. Rxc7 {[%clk 0:03:15.6]}
37... Nf4 {[%clk 0:02:37.2]} 38. Ne5 {[%clk 0:03:13.3]} 38... Ne2+ {[%clk
0:02:35.3]} 39. Kf1 {[%clk 0:03:12]} 39... Nxd4 {[%clk 0:02:33.9]} 40. Rxf7
{[%clk 0:03:09.2]} 40... Nf5 {[%clk 0:02:31.4]} 41. g4 {[%clk 0:03:07.5]} 41...
Nd4 {[%clk 0:02:26.8]} 42. Raa7 {[%clk 0:03:03.2]} 42... Nb5 {[%clk 0:02:24.4]}
43. Rxg7+ {[%clk 0:03:01.8]} 43... Kh8 {[%clk 0:02:23.3]} 44. Ng6# {[%clk
0:03:00.3]} 1-0

[Event "Live Chess"]
[Site "Chess.com"]
[Date "2023.05.20"]
[Round "-"]
[White "omisoc"]
[Black "AdamOwls"]
[Result "1-0"]
[WhiteElo "2210"]
[BlackElo "1951"]
[TimeControl "300"]
[EndTime "12:43:55 PDT"]
[Termination "omisoc won by resignation"]

1. b3 {[%clk 0:04:58.2]} 1... d5 {[%clk 0:04:58.2]} 2. Bb2 {[%clk 0:04:56.8]}
2... Nf6 {[%clk 0:04:57.4]} 3. e3 {[%clk 0:04:55.8]} 3... c5 {[%clk 0:04:55]} 4.
Nf3 {[%clk 0:04:53.8]} 4... Nc6 {[%clk 0:04:54]} 5. c4 {[%clk 0:04:51.3]} 5...
e6 {[%clk 0:04:51.4]} 6. g3 {[%clk 0:04:50.4]} 6... Be7 {[%clk 0:04:50.4]} 7.
Bg2 {[%clk 0:04:49.5]} 7... O-O {[%clk 0:04:49.3]} 8. O-O {[%clk 0:04:48.9]}
8... a6 {[%clk 0:04:47.8]} 9. Qe2 {[%clk 0:04:47.8]} 9... b6 {[%clk 0:04:46.9]}
10. d3 {[%clk 0:04:41.3]} 10... Bb7 {[%clk 0:04:45.7]} 11. Nbd2 {[%clk
0:04:40.2]} 11... Qc7 {[%clk 0:04:44.4]} 12. Rac1 {[%clk 0:04:38]} 12... dxc4
{[%clk 0:04:41.7]} 13. Nxc4 {[%clk 0:04:34.8]} 13... b5 {[%clk 0:04:40]} 14.
Nce5 {[%clk 0:04:33.2]} 14... Nxe5 {[%clk 0:04:37]} 15. Nxe5 {[%clk 0:04:31.8]}
15... Bd6 {[%clk 0:04:33.2]} 16. f4 {[%clk 0:04:27.2]} 16... Bxg2 {[%clk
0:04:31.2]} 17. Kxg2 {[%clk 0:04:23.5]} 17... Rac8 {[%clk 0:04:29.5]} 18. Qf3
{[%clk 0:04:19.9]} 18... Qd7 {[%clk 0:04:15]} 19. Nxd7 {[%clk 0:04:17.4]} 1-0

[Event "Live Chess"]
[Site "Chess.com"]
[Date "2023.05.20"]
[Round "-"]
[White "lateforthesky"]
[Black "boilerboy1"]
[Result "1-0"]
[WhiteElo "2090"]
[BlackElo "1050"]
[TimeControl "300"]
[EndTime "12:43:58 PDT"]
[Termination "lateforthesky won on time"]

1. e4 {[%clk 0:04:57.6]} 1... e5 {[%clk 0:04:58.4]} 2. Nf3 {[%clk 0:04:56.7]}
2... d6 {[%clk 0:04:56.3]} 3. Nc3 {[%clk 0:04:54.6]} 3... c6 {[%clk 0:04:55]} 4.
Bc4 {[%clk 0:04:46.9]} 4... Be7 {[%clk 0:04:53.1]} 5. a4 {[%clk 0:04:45.4]} 5...
Nd7 {[%clk 0:04:51]} 6. d3 {[%clk 0:04:43]} 6... Ngf6 {[%clk 0:04:49.1]} 7. O-O
{[%clk 0:04:40.6]} 7... O-O {[%clk 0:04:47]} 8. h3 {[%clk 0:04:39.3]} 8... Nh5
{[%clk 0:04:39.2]} 9. d4 {[%clk 0:04:33.7]} 9... exd4 {[%clk 0:04:26.5]} 10.
Nxd4 {[%clk 0:04:31.9]} 10... Ndf6 {[%clk 0:04:23.1]} 11. g4 {[%clk 0:04:11.6]}
11... Nxg4 {[%clk 0:03:40.3]} 12. hxg4 {[%clk 0:04:09]} 12... Nf6 {[%clk
0:03:38]} 13. f3 {[%clk 0:04:07.5]} 13... d5 {[%clk 0:03:30.3]} 14. exd5 {[%clk
0:03:57.1]} 14... cxd5 {[%clk 0:03:28.3]} 15. Be2 {[%clk 0:03:45.2]} 15... Bc5
{[%clk 0:03:20.7]} 16. Kg2 {[%clk 0:03:43.7]} 16... a6 {[%clk 0:03:14.4]} 17.
Bg5 {[%clk 0:03:37.1]} 17... Qd6 {[%clk 0:03:02.5]} 18. Qd2 {[%clk 0:03:22.4]}
18... Qb6 {[%clk 0:02:48]} 19. Nb3 {[%clk 0:03:19.2]} 19... Bb4 {[%clk
0:02:26.6]} 20. a5 {[%clk 0:03:02.4]} 20... Qd6 {[%clk 0:02:06.8]} 21. Qd4
{[%clk 0:02:55.7]} 21... Be6 {[%clk 0:01:59.1]} 22. Bxf6 {[%clk 0:02:53.3]}
22... gxf6 {[%clk 0:01:52.2]} 23. Qxf6 {[%clk 0:02:51.1]} 23... Qe7 {[%clk
0:01:48.9]} 24. Qxe7 {[%clk 0:02:49.1]} 24... Bxe7 {[%clk 0:01:46.8]} 25. Nd4
{[%clk 0:02:47.6]} 25... Kh8 {[%clk 0:01:33.8]} 26. Nxe6 {[%clk 0:02:34.7]}
26... fxe6 {[%clk 0:01:31.7]} 27. Na4 {[%clk 0:02:26.4]} 27... Bf6 {[%clk
0:01:13.6]} 28. c3 {[%clk 0:02:24.5]} 28... d4 {[%clk 0:01:10.8]} 29. Rad1
{[%clk 0:02:19.7]} 29... dxc3 {[%clk 0:01:09.2]} 30. Nxc3 {[%clk 0:02:17.4]}
30... Rac8 {[%clk 0:01:02.9]} 31. Rd7 {[%clk 0:02:12.2]} 31... Rc5 {[%clk
0:00:58.6]} 32. Rh1 {[%clk 0:01:58.7]} 32... Rxa5 {[%clk 0:00:55.9]} 33. Rhxh7+
{[%clk 0:01:56]} 33... Kg8 {[%clk 0:00:50.2]} 34. Rxb7 {[%clk 0:01:52.9]} 34...
Rc5 {[%clk 0:00:36.3]} 35. Rhc7 {[%clk 0:01:48.6]} 35... Rxc7 {[%clk 0:00:31.9]}
36. Rxc7 {[%clk 0:01:46.9]} 36... a5 {[%clk 0:00:29.4]} 37. Bc4 {[%clk
0:01:43.8]} 37... Re8 {[%clk 0:00:24.8]} 38. Ra7 {[%clk 0:01:36.2]} 38... Re7
{[%clk 0:00:13.5]} 39. Rxe7 {[%clk 0:01:31.7]} 39... Bxe7 {[%clk 0:00:11.7]} 40.
Bxe6+ {[%clk 0:01:30.3]} 40... Kg7 {[%clk 0:00:09.8]} 41. f4 {[%clk 0:01:28]}
41... Bb4 {[%clk 0:00:06.8]} 42. Kf3 {[%clk 0:01:26.1]} 42... Kf6 {[%clk
0:00:05.7]} 43. Bb3 {[%clk 0:01:24.1]} 43... Ke7 {[%clk 0:00:00.2]} 44. Nd5+
{[%clk 0:01:22.2]} 1-0